bitfinex/quotes_ETHUSD_20250529
["timestamp","ask_amount","ask_price","bid_price","bid_amount"]
[1748545932756,0.7656,2644.3,2643.4,10.0]
[1748545932936,4.5349,2644.4,2644.0,1.90659695]
[1748545933325,0.45349,2644.3,2644.0,1.90659695]
[1748545934007,0.45349,2644.3,2643.6,1.90659695]
[1748545934210,3.7819564,2644.2,2643.6,1.90659695]
[1748545934647,3.78215503,2644.0,2643.5,0.0948]
[1748545934880,3.78215503,2644.0,2643.3,1.90659695]
[1748545934881,0.7656,2644.0,2643.3,1.90659695]
[1748545935151,3.78253573,2643.8,2643.3,1.90659695]
[1748545935350,4.50325357,2643.7,2643.3,1.90659695]
[1748545935514,8.28583821,2643.7,2643.3,1.90659695]
[1748545935707,8.28588839,2643.7,2643.1,0.0948]
[1748545935914,4.50325357,2643.7,2643.1,0.0948]
[1748545936335,8.28589649,2643.7,2643.1,0.0948]
[1748545936853,4.61140498,2643.6,2643.1,0.0948]
[1748545937051,0.82858965,2643.6,2643.1,0.0948]
[1748545937608,4.125,2643.7,2643.1,0.0948]
[1748545937953,7.90759805,2643.7,2643.1,0.0948]
[1748545938159,4.116,2643.7,2643.1,0.0948]
[1748545938904,7.89859265,2643.7,2643.1,0.0948]
[1748545939195,7.89857757,2643.7,2643.1,0.0948]
[1748545939352,5.28409244,2643.7,2643.1,2.00139695]
[1748545939754,4.113,2643.7,2643.1,2.00139695]
[1748545940494,7.89565647,2643.7,2643.1,2.00139695]
[1748545940793,4.113,2643.7,2643.1,0.0948]
[1748545941096,4.113,2643.7,2642.9,0.005]
[1748545941260,3.78357926,2643.0,2642.9,0.005]
[1748545941459,8.27593719,2643.0,2642.9,0.005]
[1748545941797,9.63743719,2643.0,2642.9,0.005]
[1748545942299,3.78458161,2642.3,2641.6,0.0948]
[1748545942598,8.65578161,2642.3,2641.6,0.0948]
[1748545943608,4.12,2642.3,2641.6,2.00139695]
[1748545943819,9.07346589,2642.3,2641.1,0.0998]
[1748545944019,9.82466589,2642.3,2641.1,0.0998]
[1748545944608,12.90471137,2642.3,2641.2,1.90659695]
[1748545944774,3.78472485,2642.2,2641.2,1.90659695]
[1748545945300,3.78488125,2642.1,2641.2,1.90659695]
[1748545945483,4.16351685,2642.0,2641.2,1.90659695]
[1748545945798,4.16360112,2642.0,2641.2,1.90659695]
[1748545945958,3.78518124,2641.9,2641.2,1.90659695]
[1748545946158,0.37848813,2642.0,2641.2,1.90659695]
[1748545946363,12.90478932,2642.3,2641.2,1.90659695]
[1748545946561,4.24888428,2642.3,2641.6,1.90659695]
[1748545946771,4.113,2642.2,2641.6,1.90659695]
[1748545946981,3.08,2642.3,2641.6,1.90659695]
[1748545947363,4.112,2642.2,2641.6,1.90659695]
[1748545947662,4.112,2642.2,2641.7,0.1906597]
[1748545947858,4.112,2642.2,2641.6,1.90659695]
[1748545948103,4.112,2642.2,2641.0,10.0]
[1748545948292,3.78494965,2642.1,2641.2,1.90659695]
[1748545948676,3.78502709,2642.0,2641.2,1.90659695]
[1748545948972,3.78502709,2642.0,2640.8,3.06459695]
[1748545948973,4.54218609,2641.9,2640.8,3.06459695]
[1748545949163,3.78556229,2641.7,2640.8,1.90659695]
[1748545949409,4.114,2641.6,2641.2,1.90659695]
[1748545950829,4.111,2641.8,2641.2,1.90659695]
[1748545950974,8.6834548,2641.8,2640.8,1.90659695]
[1748545951302,4.8981,2641.8,2640.9,0.1906597]
[1748545952362,8.68340421,2641.8,2640.9,0.1906597]
[1748545952572,3.78557177,2641.7,2640.8,1.90659695]
[1748545952775,3.78553933,2641.7,2640.8,1.90659695]
[1748545952973,8.68342679,2641.8,2640.8,1.90659695]
[1748545953411,4.8981,2641.8,2640.3,10.0]
[1748545953594,3.78571153,2641.6,2640.7,1.90659695]
[1748545953908,4.8981,2641.8,2640.7,1.90659695]
[1748545954077,8.68341517,2641.8,2640.7,1.90659695]
[1748545954602,4.8981,2641.8,2640.8,3.354499]
[1748545955307,4.103,2641.7,2641.1,1.90659695]
[1748545955895,4.103,2641.7,2639.3,8.00745926]
[1748545955896,0.7882,2641.6,2640.4,1.90659695]
[1748545956236,0.48912,2641.5,2640.4,1.90659695]
[1748545956440,4.1,2641.4,2640.4,1.90659695]
[1748545956945,0.7882,2641.3,2639.8,0.26647251]
[1748545957106,3.78661993,2640.9,2639.9,1.90659695]
[1748545957301,3.78661993,2640.9,2639.9,2.1239039]
[1748545957537,3.78673129,2640.8,2639.9,2.1239039]
[1748545957804,4.27501139,2641.2,2639.8,0.26647251]
[1748545957805,0.7673,2640.6,2639.8,0.26647251]
[1748545958005,3.7876917,2640.2,2639.2,1.90659695]
[1748545958198,0.7673,2640.6,2639.3,1.90659695]
[1748545958199,3.78731274,2640.4,2639.3,1.90659695]
[1748545958411,0.7673,2640.6,2639.3,1.90659695]
[1748545958412,4.111,2640.1,2639.3,1.90659695]
[1748545959115,4.111,2640.1,2639.4,1.90659695]
[1748545959315,4.5221,2640.1,2639.4,1.90659695]
[1748545959726,4.55437684,2640.6,2639.4,1.90659695]
[1748545959902,4.108,2640.5,2639.8,1.90659695]
[1748545960102,4.108,2640.5,2639.2,2.45659695]
[1748545960348,3.78739755,2640.4,2639.2,2.45659695]
[1748545960646,4.108,2640.5,2639.3,1.159]
[1748545960943,3.78761227,2640.2,2639.3,1.159]
[1748545961145,3.78750701,2640.3,2639.2,1.90659695]
[1748545961347,4.27493672,2640.4,2639.1,1.90659695]
[1748545961534,3.78753281,2640.3,2639.1,1.90659695]
[1748545961731,0.48753,2640.4,2639.1,1.90659695]
[1748545961948,0.459553,2640.3,2639.2,0.1906597]
[1748545962112,4.24701054,2640.3,2639.2,0.1906597]
[1748545962310,4.54004495,2640.1,2638.5,10.0]
[1748545962523,4.54004495,2640.1,2639.1,1.90659695]
[1748545962920,0.7523,2640.1,2639.1,1.90659695]
[1748545963944,0.459553,2640.3,2639.5,1.90659695]
[1748545964153,4.101,2640.0,2639.5,1.90659695]
[1748545964450,0.7904,2640.7,2639.9,1.90659695]
[1748545964753,4.8924,2640.7,2639.9,1.90659695]
[1748545964912,0.7904,2640.7,2639.9,1.90659695]
[1748545965112,4.101,2640.6,2639.9,1.90659695]
[1748545965337,0.48914,2640.5,2639.9,1.90659695]
[1748545965545,0.48914,2640.5,2639.2,1.90659695]
[1748545965913,3.78769456,2640.2,2639.2,1.90659695]
[1748545966453,0.7587,2640.1,2639.2,1.90659695]
[1748545966620,1.24784,2640.5,2639.7,1.90659695]
[1748545966816,4.1,2640.4,2639.7,1.90659695]
[1748545967012,0.7587,2640.5,2639.7,1.90659695]
[1748545967221,4.101,2640.4,2639.3,1.90659695]
[1748545967541,4.101,2640.4,2638.4,5.71979085]
[1748545967542,3.78839045,2639.7,2639.0,1.90659695]
[1748545967748,4.49483905,2639.6,2638.5,10.0]
[1748545968056,3.78860515,2639.5,2638.4,3.05059695]
[1748545968240,4.49483905,2639.6,2638.8,1.90659695]
[1748545969679,4.49483905,2639.6,2638.9,1.90659695]
[1748545969980,0.818,2639.3,2636.9,50.0]
[1748545970160,4.111,2639.5,2637.2,1.90659695]
[1748545970161,0.818,2638.9,2637.2,1.90659695]
[1748545970456,4.13,2638.8,2638.0,5.69731075]
[1748545970760,4.13,2638.8,2638.2,3.79034094]
[1748545970960,4.13,2638.7,2638.0,1.90659695]
[1748545971272,4.13,2638.7,2638.1,0.1906597]
[1748545971946,4.13,2638.7,2638.0,1.90659695]
[1748545972271,3.78991616,2638.6,2637.6,1.90659695]
[1748545972572,3.78991616,2638.6,2636.8,5.71979085]
[1748545972573,3.7901047,2638.5,2637.7,1.90659695]
[1748545972791,4.13,2638.7,2637.7,1.90659695]
[1748545972976,3.78995871,2638.6,2637.7,1.90659695]
[1748545973190,0.8252,2638.5,2637.7,0.1906597]
[1748545973503,0.8252,2638.5,2630.8,6.99432253]
[1748545973504,0.2,2636.3,2630.8,6.99432253]
[1748545973642,11.04255103,2634.0,2630.8,0.88810151]
[1748545973836,11.469018,2633.9,2630.1,0.7509]
[1748545974051,11.469018,2633.9,2630.8,1.92510812]
[1748545974052,3.977,2633.4,2630.8,1.92510812]
[1748545974291,0.44134943,2631.4,2630.3,2.32275]
[1748545974444,0.44134943,2631.5,2630.9,1.34035199]
[1748545974645,0.44134943,2631.5,2630.2,0.3173837]
[1748545974646,0.44134943,2631.3,2630.4,21.681523]
[1748545975047,0.79394472,2631.4,2631.1,1.92510812]
[1748545975281,0.79394472,2631.4,2631.3,4.09742]
[1748545975481,0.44134943,2631.4,2631.3,4.09742]
[1748545975697,1.45945006,2632.5,2631.5,10.0]
[1748545975986,0.34750366,2632.4,2631.5,3.79998492]
[1748545976183,0.58754828,2633.0,2631.4,4.87632]
[1748545976184,4.797,2632.7,2631.4,4.87632]
[1748545976387,0.34747692,2632.6,2631.5,11.202938]
[1748545976546,4.797,2632.7,2631.8,10.0]
[1748545976742,4.797,2632.7,2631.7,1.92324611]
[1748545976957,4.797,2632.7,2631.8,8.599787]
[1748545977143,0.7656,2633.1,2631.5,12.21550111]
[1748545977551,3.79850873,2632.7,2631.7,10.109917]
[1748545977714,5.13515813,2633.0,2631.7,10.109917]
[1748545977715,4.789,2633.0,2631.7,10.109917]
[1748545977862,8.58615175,2632.9,2631.6,5.10166166]
[1748545978069,4.788,2632.8,2630.6,0.8017]
[1748545978377,5.13514868,2632.7,2631.2,1.92324611]
[1748545978601,0.34514868,2632.6,2631.5,3.80002168]
[1748545978776,3.79882148,2632.4,2631.1,3.50624611]
[1748545978960,4.787,2632.5,2630.6,0.8017]
[1748545979200,5.2637,2632.4,2630.7,1.583]
[1748545979401,3.7995891,2631.9,2630.7,3.50624611]
[1748545979704,3.81345578,2631.8,2630.8,13.80108076]
[1748545979858,3.79997266,2631.6,2630.7,3.50624611]
[1748545980063,0.01375224,2631.5,2630.7,3.50624611]
[1748545980405,0.01375224,2631.5,2630.6,0.8017]
[1748545980911,0.01375224,2631.5,2630.8,3.80098456]
[1748545981063,0.01375224,2631.5,2631.4,3.80025841]
[1748545981404,0.01375224,2631.5,2630.2,3.479546]
[1748545981700,0.01375224,2631.5,2630.0,10.0]
[1748545981701,0.01375224,2631.5,2630.8,1.92324611]
[1748545982002,0.7656,2631.4,2629.5,0.8017]
[1748545982201,8.02844766,2632.8,2629.5,0.8017]
[1748545982202,0.01375224,2631.3,2629.5,4.30894611]
[1748545982385,1.6969925,2632.6,2631.4,0.7656]
[1748545982576,3.79821389,2632.9,2632.1,1.92324611]
[1748545982901,0.7656,2633.2,2632.1,1.92324611]
[1748545982902,0.7656,2633.2,2632.2,2.658093]
[1748545983104,0.7656,2633.2,2632.3,0.45813391]
[1748545983474,0.7656,2633.2,2631.8,11.733594]
[1748545983662,4.793,2633.6,2630.2,0.8017]
[1748545983663,0.7656,2633.1,2630.4,7.35373833]
[1748545983869,3.79921527,2632.2,2631.3,3.80036909]
[1748545984188,3.7991972,2632.2,2631.3,10.0]
[1748545984389,3.79963268,2631.9,2630.9,3.80086879]
[1748545984594,8.60471582,2632.5,2631.6,3.79987213]
[1748545984780,0.55,2632.9,2631.0,2.4956576]
[1748545984960,0.55,2632.9,2630.4,5.76973833]
[1748545984961,3.79924774,2632.1,2630.5,3.80155863]
[1748545985167,0.7806,2632.2,2630.2,2.3857]
[1748545985371,3.7994621,2632.0,2630.5,14.23702211]
[1748545985611,3.79944173,2632.0,2630.6,5.697107]
[1748545985776,0.37994417,2631.9,2630.8,3.80111008]
[1748545986107,3.79976979,2631.8,2630.7,0.76203531]
[1748545986271,0.7806,2632.2,2631.0,3.8006939]
[1748545986472,0.7806,2632.2,2631.3,3.80030929]
[1748545986671,5.5916,2632.6,2630.2,0.8017]
[1748545987006,3.79891851,2632.4,2631.5,3.80008826]
[1748545987192,0.7636,2632.6,2631.4,5.38525841]
[1748545987392,0.7636,2632.6,2631.7,1.92324611]
[1748545987600,4.826,2633.1,2631.9,13.457378]
[1748545987773,4.826,2633.1,2631.9,14.42705139]
[1748545987979,0.7636,2633.3,2632.2,1.92324611]
[1748545988212,0.31385655,2633.2,2631.5,0.79585384]
[1748545988415,0.31385655,2633.2,2630.4,5.76973833]
[1748545988416,3.79809335,2632.9,2630.6,10.0]
[1748545988599,0.31385655,2633.2,2630.4,0.8025]
[1748545988600,3.79981915,2631.8,2630.9,3.80097942]
[1748545988804,3.80067117,2631.2,2630.4,2.3875]
[1748545989008,0.7636,2631.9,2629.8,2.3875]
[1748545989207,3.79968082,2631.8,2630.1,1.92324611]
[1748545989518,3.80074837,2631.1,2630.3,3.80183107]
[1748545989721,0.45632808,2631.7,2630.2,3.80193959]
[1748545989880,3.7999696,2631.6,2629.8,2.3875]
[1748545990082,0.31385655,2631.5,2629.9,3.80242594]
[1748545990311,0.31385655,2631.5,2629.9,3.80234619]
[1748545990493,0.31385655,2631.5,2630.0,3.80214484]
[1748545990494,3.80103462,2630.9,2630.0,3.80214484]
[1748545990700,4.84,2631.0,2629.8,0.8025]
[1748545990905,0.7754,2629.8,2629.1,0.02]
[1748545991102,3.80325295,2629.4,2629.1,0.02]
[1748545991297,3.80189958,2630.3,2629.1,0.02]
[1748545991298,4.877,2630.0,2629.1,0.02]
[1748545991494,1.2594,2630.9,2629.8,3.80245619]
[1748545991694,0.31385655,2631.5,2630.4,3.80170316]
[1748545991695,1.11505655,2631.5,2630.4,3.80170316]
[1748545992027,1.11505655,2631.5,2630.4,5.72494296]
[1748545992331,6.01505655,2631.5,2630.5,10.0]
[1748545992527,6.01505655,2631.5,2629.8,12.739671]
[1748545992724,3.80056077,2631.2,2630.3,1.92324611]
[1748545992928,3.80056077,2631.2,2629.9,11.641]
[1748545992929,3.80094188,2631.0,2630.2,3.80196042]
[1748545993127,0.31385655,2630.9,2630.2,3.80196042]
[1748545993431,0.31385655,2630.9,2630.0,3.80228136]
[1748545993432,0.31385655,2630.9,2630.6,3.80128383]
[1748545993628,0.31385655,2630.9,2630.3,1.92324611]
[1748545993869,0.31385655,2630.9,2630.0,10.0]
[1748545993995,4.11497723,2630.9,2629.2,10.87915]
[1748545994344,0.804,2630.7,2629.1,0.02]
[1748545994493,0.31311723,2630.6,2629.1,0.02]
[1748545994692,0.804,2630.7,2629.4,13.87782]
[1748545994892,0.804,2630.7,2629.6,10.0]
[1748545995128,0.804,2630.7,2629.8,3.8024275]
[1748545995338,0.804,2630.7,2629.4,10.0]
[1748545995339,1.75840077,2630.7,2629.9,3.80230974]
[1748545995491,4.60538458,2630.7,2629.4,10.0]
[1748545995696,0.804,2630.7,2629.1,0.02]
[1748545995924,3.80141412,2630.6,2629.1,0.02]
[1748545996127,3.80283743,2629.7,2629.1,0.02]
[1748545996325,3.80295085,2629.6,2629.1,0.02]
[1748545996492,3.80275415,2629.7,2629.1,0.02]
[1748545996706,4.938,2629.8,2629.1,0.02]
[1748545996904,5.4318,2629.8,2629.1,0.02]
[1748545997321,5.4318,2629.8,2628.8,0.32710255]
[1748545997322,3.80375266,2629.0,2628.8,0.32710255]
[1748545997667,0.8153,2629.7,2628.8,0.32710255]
[1748545997846,5.7563,2629.7,2628.8,0.32710255]
[1748545998141,0.57563,2629.7,2628.9,3.80384246]
[1748545998304,4.941,2629.8,2629.1,3.80349946]
[1748545998508,4.941,2629.8,2628.9,3.80378766]
[1748545998509,3.80281087,2629.7,2628.9,3.80378766]
[1748545998730,4.941,2629.8,2628.8,0.32710255]
[1748545998893,3.8021368,2630.1,2629.3,3.80322241]
[1748545999097,3.8021368,2630.1,2629.0,2.75074611]
[1748545999098,0.8153,2630.2,2629.2,10.0]
[1748545999341,0.57553,2630.1,2629.0,10.8275]
[1748545999553,0.33910899,2630.0,2629.3,1.92324611]
[1748545999843,8.73985322,2630.3,2629.3,1.92324611]
[1748545999844,3.80206184,2630.2,2629.4,3.80306817]
[1748545999993,0.33916676,2630.1,2629.3,5.72649628]
[1748546000192,0.34041703,2630.0,2629.4,3.80302361]
[1748546000393,0.34041703,2629.9,2629.3,3.80329365]
[1748546000616,0.34041703,2629.8,2629.1,5.44554489]
[1748546000817,3.8021368,2630.1,2629.3,13.80327407]
[1748546001033,3.80250884,2629.9,2629.1,3.80350767]
[1748546001234,3.80265505,2629.8,2629.0,10.0]
[1748546001451,3.80298481,2629.6,2628.8,0.32710255]
[1748546001649,0.69001209,2629.5,2628.8,0.32710255]
[1748546001850,0.58754828,2629.9,2628.8,0.32710255]
[1748546001851,0.69001209,2629.4,2628.9,3.80384181]
[1748546002016,0.69001209,2629.3,2629.0,3.80364669]
[1748546002216,3.80295058,2629.6,2628.8,0.32710255]
[1748546002443,0.34925496,2629.5,2628.8,0.32710255]
[1748546002651,0.93680324,2629.4,2628.8,0.32710255]
[1748546002954,3.80387234,2628.9,2628.8,0.32710255]
[1748546003155,0.93680324,2628.9,2628.8,0.32710255]
[1748546003455,4.49792049,2628.9,2628.8,0.32710255]
[1748546003611,1.52421429,2628.9,2628.3,0.7312]
[1748546003817,9.42312438,2628.8,2628.3,0.7312]
[1748546004027,4.49828188,2628.7,2628.3,0.7312]
[1748546004320,0.5871942,2628.4,2628.3,0.7312]
[1748546004559,0.69368445,2628.4,2628.3,0.7312]
[1748546004712,0.69343228,2628.4,2628.3,0.7312]
[1748546005211,0.34925496,2628.4,2628.3,0.7312]
[1748546005724,0.34925496,2628.4,2628.3,4.5359407]
[1748546006456,0.58706821,2629.2,2628.9,3.8037849]
[1748546006639,0.58706821,2629.2,2628.6,5.72744746]
[1748546006949,0.58706821,2629.4,2628.9,0.7557]
[1748546007180,0.58706821,2629.4,2629.0,1.92324611]
[1748546007459,0.58706821,2629.8,2629.4,3.80300465]
[1748546007611,0.58706821,2629.8,2629.0,1.92324611]
[1748546007612,0.58706821,2629.9,2629.8,3.80257053]
[1748546007810,0.58706821,2630.4,2630.2,3.80186995]
[1748546008013,0.58706821,2630.6,2630.5,3.80155863]
[1748546008245,0.58706821,2631.1,2630.5,1.92324611]
[1748546008441,0.58706821,2631.2,2630.5,1.92324611]
[1748546008648,0.58706821,2631.2,2630.6,11.483692]
[1748546008832,0.58706821,2631.2,2630.5,2.11557072]
[1748546008833,0.58706821,2631.3,2630.5,10.0]
[1748546009034,4.38757457,2631.3,2630.5,1.92324611]
[1748546009245,0.58706821,2631.2,2630.5,1.92324611]
[1748546009423,0.58706821,2631.3,2630.5,1.92324611]
[1748546009952,4.926,2631.3,2630.5,1.92324611]
[1748546010114,9.27781326,2631.3,2630.5,1.92324611]
[1748546010313,6.06437503,2631.3,2630.5,1.92324611]
[1748546010561,0.34474898,2631.2,2630.5,1.92324611]
[1748546010719,0.58706821,2631.2,2630.5,1.92324611]
[1748546011238,5.47730682,2631.3,2630.5,1.92324611]
[1748546011239,6.06437503,2631.3,2630.5,1.92324611]
[1748546011438,4.915,2631.2,2630.6,4.506303]
[1748546011644,0.58706821,2631.4,2630.6,4.506303]
[1748546012703,0.58706821,2631.4,2630.9,1.92324611]
[1748546012964,0.7512,2631.7,2630.5,3.481437]
[1748546012965,0.58706821,2631.3,2630.5,3.481437]
[1748546013338,0.7512,2631.7,2630.5,3.481437]
[1748546013339,0.58706821,2631.4,2630.9,1.92324611]
[1748546013860,0.58706821,2631.6,2631.0,2.632092]
[1748546014157,0.58706821,2631.7,2631.4,1.92324611]
[1748546014336,0.58706821,2632.0,2631.4,1.92324611]
[1748546014859,4.894,2632.3,2631.0,1.53702381]
[1748546014860,0.58706821,2632.1,2631.0,10.41939411]
[1748546015029,0.58706821,2631.9,2631.0,1.92324611]
[1748546015234,0.34511934,2631.8,2631.0,1.92324611]
[1748546015543,0.58706821,2631.9,2631.1,3.44426161]
[1748546015734,1.9615029,2632.6,2631.1,3.44426161]
[1748546015735,0.58706821,2632.0,2631.4,1.92324611]
[1748546015934,0.58706821,2632.1,2631.4,1.92324611]
[1748546016119,0.58706821,2632.3,2631.8,1.92324611]
[1748546016319,0.58706821,2632.5,2631.2,6.713727]
[1748546016648,0.34517699,2632.4,2631.7,2.876748]
[1748546016830,5.46806821,2632.5,2631.7,2.876748]
[1748546017163,0.58706821,2632.5,2631.7,2.876748]
[1748546017342,0.58706821,2633.0,2632.0,1.92324611]
[1748546017543,4.883,2633.1,2632.0,1.92324611]
[1748546017842,0.54700682,2633.0,2632.2,10.0]
[1748546018013,0.54700682,2633.0,2632.3,10.0]
[1748546018217,0.35327297,2632.9,2632.0,1.92324611]
[1748546018452,0.58706821,2633.3,2632.0,1.92324611]
[1748546018453,0.35327268,2632.8,2632.5,1.92324611]
[1748546018655,0.35327268,2632.7,2632.5,1.92324611]
[1748546018838,4.874,2633.1,2632.5,1.92324611]
[1748546019042,0.35326717,2633.0,2632.5,1.92324611]
[1748546019243,0.35326717,2632.9,2632.5,1.92324611]
[1748546019444,4.867,2633.3,2632.7,10.0]
[1748546019765,0.8243,2633.8,2633.0,1.92324611]
[1748546019943,3.7977437,2633.2,2632.2,0.7699]
[1748546020145,4.15086917,2633.1,2632.2,0.7699]
[1748546020321,5.21597974,2633.0,2632.0,1.92324611]
[1748546020524,0.35297974,2632.9,2632.0,1.92324611]
[1748546020722,0.58706821,2633.5,2632.4,1.92324611]
[1748546020935,5.213516,2633.4,2632.6,5.38347]
[1748546021140,3.79778211,2633.2,2632.4,1.92324611]
[1748546021421,0.352516,2633.1,2632.4,1.92324611]
[1748546021636,3.79778211,2633.2,2632.4,1.92324611]
[1748546021865,0.35218357,2633.1,2632.5,3.488369]
[1748546022051,4.31781071,2633.7,2632.5,3.488369]
[1748546022255,3.79731394,2633.5,2632.6,3.430717]
[1748546022561,0.35192691,2633.4,2632.6,5.283564]
[1748546022779,9.59975166,2633.6,2632.6,5.283564]
[1748546022923,4.1491571,2633.5,2632.6,3.168819]
[1748546023122,4.1491571,2633.5,2632.5,10.54116151]
[1748546023123,3.79749439,2633.4,2632.5,0.54116151]
[1748546023337,1.33923232,2633.4,2632.5,2.622]
[1748546023560,8.64227311,2633.5,2632.5,2.622]
[1748546023767,4.845,2633.5,2632.5,2.622]
[1748546024433,0.95260028,2633.6,2632.4,1.92324611]
[1748546024637,3.79787953,2633.1,2632.0,1.92324611]
[1748546024842,3.79793957,2633.1,2632.0,1.92324611]
[1748546025040,4.836,2633.4,2632.0,1.92324611]
[1748546025337,0.8243,2633.8,2632.6,4.703142]
[1748546025540,0.35127951,2633.7,2632.8,3.86398]
[1748546025871,0.87691379,2633.7,2632.9,1.92324611]
[1748546026078,5.6593,2633.8,2632.9,1.92324611]
[1748546026225,0.8243,2633.8,2632.9,1.92324611]
[1748546026423,4.832,2633.7,2632.9,1.92324611]
[1748546026626,0.8243,2633.8,2632.9,1.92324611]
[1748546026927,3.79643306,2634.1,2633.1,1.92324611]
[1748546026928,3.79636563,2634.1,2633.1,1.92324611]
[1748546027127,5.1771899,2634.0,2633.2,5.04025]
[1748546027382,4.826,2634.0,2633.2,4.773522]
[1748546027540,0.75925237,2634.1,2633.2,4.33454]
[1748546027871,0.9355,2634.2,2633.2,4.33454]
[1748546028081,4.82,2634.1,2633.1,1.92324611]
[1748546028227,4.82,2634.1,2632.9,10.0]
[1748546028427,3.79650812,2634.0,2633.0,10.0]
[1748546028669,8.61637303,2634.1,2633.2,10.0]
[1748546028848,3.79673377,2633.9,2632.9,3.1138]
[1748546029049,4.75177041,2634.0,2633.0,10.0]
[1748546029242,4.75177041,2634.0,2633.0,2.345798]
[1748546029441,0.9551873,2634.0,2632.9,2.422926]
[1748546029666,0.9551873,2634.0,2632.7,0.8803]
[1748546029876,0.57751873,2633.9,2632.7,0.8803]
[1748546030169,4.37424171,2633.9,2632.7,0.8803]
[1748546030369,0.57751873,2633.9,2633.0,1.92324611]
[1748546030575,4.805,2633.8,2633.0,1.92324611]
[1748546030929,0.57751873,2633.9,2633.1,5.807211]
[1748546031270,0.57751873,2633.9,2633.0,1.92324611]
[1748546031271,1.23591338,2634.6,2633.3,10.0]
[1748546031589,4.798,2634.7,2633.8,1.92324611]
[1748546032040,4.798,2634.7,2633.9,4.006219]
[1748546032244,0.9199,2635.0,2633.9,2.236878]
[1748546032491,4.792,2634.9,2633.9,2.236878]
[1748546032648,0.9199,2635.0,2634.2,1.92324611]
[1748546032847,4.789,2634.9,2634.3,3.729387]
[1748546033051,4.789,2634.9,2634.2,2.80504611]
[1748546033249,0.8853,2635.4,2634.2,2.80504611]
[1748546033550,4.785,2635.3,2634.4,10.0]
[1748546033867,4.785,2635.2,2634.2,2.80504611]
[1748546034045,8.57986889,2635.2,2634.2,2.80504611]
[1748546034255,0.8885,2635.8,2634.3,7.87429]
[1748546034470,0.8885,2635.8,2634.2,2.80504611]
[1748546034471,4.782,2635.7,2634.4,10.0]
[1748546034661,0.8885,2635.8,2634.2,2.80504611]
[1748546034967,3.7947913,2635.2,2634.3,0.28050461]
[1748546035143,3.79457745,2635.4,2634.3,0.28050461]
[1748546035144,3.79467967,2635.3,2634.3,0.28050461]
[1748546035346,3.79471026,2635.3,2634.3,0.28050461]
[1748546035544,3.7949986,2635.1,2634.2,0.8818]
[1748546036128,3.79463438,2635.3,2634.2,0.8818]
[1748546036336,0.9125,2634.9,2633.7,0.8613]
[1748546036591,4.768,2634.8,2634.2,1.92324611]
[1748546036730,4.767,2634.7,2634.2,1.92324611]
[1748546038103,4.767,2634.7,2633.7,10.8613]
[1748546038251,4.767,2634.7,2633.8,3.2279]
[1748546038451,4.767,2634.7,2634.0,1.92324611]
[1748546038848,8.56261418,2634.7,2633.8,10.0]
[1748546039050,4.767,2634.7,2634.0,1.92324611]
[1748546039996,4.13923427,2635.5,2633.6,5.76973833]
[1748546039997,0.44152579,2635.7,2634.6,1.9185358]
[1748546040184,1.16250332,2635.8,2635.1,1.9185358]
[1748546040391,5.06860332,2635.8,2635.1,1.9185358]
[1748546040591,4.752,2635.7,2635.1,1.9185358]
[1748546041285,4.748,2635.6,2635.1,1.9185358]
[1748546041582,4.746,2635.7,2635.1,1.9185358]
[1748546041953,4.746,2635.7,2635.1,1.91808087]
[1748546042255,4.74,2635.8,2635.5,1.91808087]
[1748546042561,4.74,2635.8,2634.4,1.91808087]
[1748546042781,3.79549081,2634.8,2634.0,1.91808087]
[1748546042985,4.739,2634.7,2633.7,3.877516]
[1748546043181,0.37954908,2634.8,2634.3,1.91808087]
[1748546043409,4.737,2634.9,2634.3,1.91808087]
[1748546043595,4.737,2634.9,2633.6,5.75424261]
[1748546043596,4.736,2634.9,2634.7,1.91808087]
[1748546043973,4.66370987,2634.8,2633.4,1.91808087]
[1748546044173,3.7957243,2634.6,2633.5,4.685289]
[1748546044371,0.44239142,2635.0,2633.8,1.91808087]
[1748546044612,3.79555574,2634.7,2633.7,10.0]
[1748546044784,3.79578163,2634.6,2633.8,1.91808087]
[1748546045108,3.79552993,2634.7,2632.8,5.75424261]
[1748546045109,3.79658572,2634.0,2633.4,1.91808087]
[1748546045272,4.741,2633.9,2633.4,1.91808087]
[1748546045477,3.79693966,2633.7,2632.6,1.91808087]
[1748546045694,6.00821033,2633.8,2632.6,1.91808087]
[1748546045695,5.13210101,2633.6,2632.6,1.91808087]
[1748546045908,0.35441033,2633.5,2632.6,1.91808087]
[1748546046108,4.74,2633.5,2632.6,1.91808087]
[1748546046294,0.35456954,2633.4,2632.7,4.660342]
[1748546046511,0.980515,2633.6,2633.0,1.91808087]
[1748546046716,4.734,2633.3,2633.0,1.91808087]
[1748546047232,4.734,2633.3,2632.6,1.91808087]
[1748546048418,3.79813866,2632.9,2631.9,1.91808087]
[1748546048585,0.35480685,2632.8,2631.9,1.91808087]
[1748546048773,4.7052017,2633.0,2631.9,1.91808087]
[1748546048973,1.20510547,2632.9,2631.9,1.91808087]
[1748546049303,0.35478466,2632.8,2631.9,1.91808087]
[1748546049612,0.85030163,2632.9,2631.9,1.91808087]
[1748546049784,0.35478588,2632.8,2631.9,1.91808087]
[1748546049984,0.85030163,2632.9,2631.9,1.91808087]
[1748546050306,0.35478517,2632.8,2631.9,1.91808087]
[1748546050512,4.38933217,2632.8,2631.7,0.8546]
[1748546050719,4.15318471,2632.7,2631.3,3.12235416]
[1748546050885,4.15318471,2632.7,2631.0,10.0]
[1748546050886,0.9072,2632.5,2631.0,10.0]
[1748546051086,0.8564,2631.6,2630.5,0.8546]
[1748546051287,5.07174706,2631.5,2630.5,0.8546]
[1748546051522,0.35431785,2631.4,2630.5,0.8546]
[1748546051723,4.717,2631.5,2630.5,0.8546]
[1748546051927,0.55734,2631.4,2630.5,0.8546]
[1748546052230,3.80069172,2631.1,2629.5,0.9367]
[1748546052524,3.80069172,2631.1,2629.2,1.91808087]
[1748546052525,0.8564,2630.8,2629.2,10.0]
[1748546052682,3.80142316,2630.6,2629.1,12.85478087]
[1748546052908,3.80165947,2630.5,2629.1,2.85478087]
[1748546053145,4.18187531,2630.4,2629.2,0.28547809]
[1748546053350,3.80199311,2630.2,2629.2,0.28547809]